fUSD/lending_fUSD_20251112
["ID","MTS","AMOUNT","RATE_DAILY","PERIOD"]
[393775529,1762975108305,-245.56221142,0.00055068,120]
[393775530,1762975108357,-500.0,0.00055068,120]
[393775531,1762975108403,-500.0,0.00055068,120]
[393775532,1762975108447,-372.04960065,0.00055068,120]
[393775533,1762975108491,-500.0,0.00055068,120]
[393775534,1762975108533,-500.0,0.00055068,120]
[393775535,1762975108577,-500.0,0.00055068,120]
[393775536,1762975108619,-477.82075008,0.00055068,120]
[393775537,1762975108663,-500.0,0.00055068,120]
[393775538,1762975108708,-711.22,0.00055068,120]
[393775539,1762975108755,-500.0,0.00055068,120]
[393775540,1762975108800,-500.0,0.00055068,120]
[393775541,1762975108847,-500.0,0.00055068,120]
[393775542,1762975108892,-500.0,0.00055068,120]
[393775543,1762975108940,-561.35,0.00055068,120]
[393775544,1762975108990,-500.0,0.00055068,120]
[393775545,1762975109042,-561.9,0.00055068,120]
[393775546,1762975109088,-519.17,0.00055068,120]
[393775547,1762975109131,-500.0,0.00055068,120]
[393775548,1762975109171,-557.81,0.00055068,120]
[393775549,1762975109214,-604.92,0.00055068,120]
[393775550,1762975109255,-693.64,0.00055068,120]
[393775551,1762975109302,-573.2,0.00055068,120]
[393775552,1762975109347,-500.0,0.00055068,120]
[393775553,1762975109392,-442.21,0.00055068,120]
[393775554,1762975109437,-500.0,0.00055068,120]
[393775555,1762975109486,-500.0,0.00055068,120]
[393775556,1762975109534,-500.0,0.00055068,120]
[393775557,1762975109580,-500.0,0.00055068,120]
[393775558,1762975109627,-500.0,0.00055068,120]
[393775559,1762975109674,-595.77,0.00055068,120]
[393775560,1762975109720,-1143.27,0.00055068,120]
[393775561,1762975109766,-500.0,0.00055068,120]
[393775562,1762975109810,-500.0,0.00055068,120]
[393775563,1762975109856,-500.0,0.00055068,120]
[393775564,1762975109902,-506.34,0.00055068,120]
[393775565,1762975109949,-500.0,0.00055068,120]
[393775566,1762975109994,-537.88,0.00055068,120]
[393775567,1762975110039,-500.0,0.00055068,120]
[393775568,1762975110085,-1149.36,0.00055068,120]
[393775569,1762975110131,-718.5,0.00055068,120]
[393775570,1762975110177,-3630.04,0.00055068,120]
[393775571,1762975110224,-500.0,0.00055068,120]
[393775572,1762975110273,-500.0,0.00055068,120]
[393775573,1762975110321,-500.0,0.00055068,120]
[393775574,1762975110368,-500.0,0.00055068,120]
[393775575,1762975110414,-1045.04,0.00055068,120]
[393775576,1762975110459,-500.0,0.00055068,120]
[393775577,1762975110500,-513.61,0.00055068,120]
[393775578,1762975110543,-500.0,0.00055068,120]
[393775579,1762975110583,-345.97008112,0.00055068,120]
[393775580,1762975110624,-597.53,0.00055068,120]
[393775581,1762975110666,-1779.43,0.00055068,120]
[393775582,1762975110842,-500.0,0.00055068,120]
[393775583,1762975110884,-765.1,0.00055068,120]
[393775584,1762975110925,-500.0,0.00055068,120]
[393775585,1762975110967,-1309.98,0.00055068,120]
[393775586,1762975111009,-533.88,0.00055068,120]
[393775587,1762975111052,-500.0,0.00055068,120]
[393775588,1762975111092,-192.81728406,0.00055068,120]
[393775589,1762975111132,-500.0,0.00055068,120]
[393775590,1762975111173,-630.65,0.00055068,120]
[393775591,1762975111214,-500.0,0.00055068,120]
[393775592,1762975111257,-500.0,0.00055068,120]
[393775593,1762975111303,-500.0,0.00055068,120]
[393775594,1762975111356,-500.0,0.00055068,60]
[393775595,1762975111405,-500.0,0.00055068,120]
[393775596,1762975111453,-500.0,0.00055068,30]
[393775597,1762975111497,-500.0,0.00055068,120]
[393775598,1762975111543,-632.55,0.00055068,120]
[393775599,1762975111586,-500.0,0.00055068,120]
[393775600,1762975111627,-150.0,0.00055084,120]
[393775601,1762975111668,-150.0,0.00055084,120]
[393775602,1762975111708,-150.0,0.0005512,120]
[393775603,1762975111748,-150.0,0.0005512,120]
[393775604,1762975111789,-150.0,0.0005512,120]
[393775605,1762975111832,-150.0,0.00055125,120]
[393775606,1762975111873,-150.0,0.00055142,120]
[393775607,1762975111915,-150.0,0.00055154,120]
[393775608,1762975111958,-150.0,0.00055185,120]
[393775609,1762975112001,-150.0,0.00055195,120]
[393775610,1762975112043,-150.0,0.00055195,120]
[393775611,1762975112084,-150.0,0.00055199,120]
[393775612,1762975112127,-150.0,0.00055201,120]
[393775613,1762975112170,-150.0,0.00055208,120]
[393775614,1762975112214,-150.0,0.00055228,120]
[393775615,1762975112257,-150.0,0.00055243,120]
[393775616,1762975112299,-500.0,0.00055254,120]
[393775617,1762975112342,-500.0,0.00055254,120]
[393775618,1762975112383,-500.0,0.00055254,120]
[393775619,1762975112424,-500.0,0.00055254,120]
[393775620,1762975112463,-500.0,0.00055254,120]
[393775621,1762975112502,-500.0,0.00055254,120]
[393775622,1762975112542,-245.0,0.00055254,120]
[393775623,1762975112581,-150.0,0.00055254,120]
[393775624,1762975112620,-150.0,0.00055257,120]
[393775625,1762975112659,-150.0,0.00055268,120]
[393775626,1762975112699,-150.0,0.00055283,120]
[393775627,1762975112741,-150.0,0.0005529,120]
[393775628,1762975112783,-155.0,0.000553,120]
[393775629,1762975112820,-150.0,0.00055315,120]
[393775630,1762975112868,-150.0,0.00055315,120]
[393775631,1762975112912,-150.0,0.00055328,120]
[393775632,1762975112957,-150.0,0.00055332,120]
[393775633,1762975113001,-150.0,0.00055333,120]
[393775634,1762975113044,-150.0,0.00055337,120]
[393775635,1762975113086,-500.0,0.00055342,120]
[393775636,1762975113137,-500.0,0.00055342,120]
[393775637,1762975113185,-500.0,0.00055342,120]
[393775638,1762975113235,-500.0,0.00055342,120]
[393775639,1762975113387,-500.0,0.00055342,120]
[393775640,1762975113433,-500.0,0.00055342,120]
[393775641,1762975113477,-500.0,0.00055342,120]
[393775642,1762975113520,-500.0,0.00055342,120]
[393775643,1762975113566,-711.22,0.00055342,120]
[393775644,1762975113614,-500.0,0.00055342,120]
[393775645,1762975113661,-500.0,0.00055342,120]
[393775646,1762975113704,-500.0,0.00055342,120]
[393775647,1762975113748,-500.0,0.00055342,120]
[393775648,1762975113790,-561.35,0.00055342,120]
[393775649,1762975113832,-500.0,0.00055342,120]
[393775650,1762975113874,-561.9,0.00055342,120]
[393775651,1762975113915,-519.17,0.00055342,120]
[393775652,1762975113957,-226.58,0.00055342,120]
[393775653,1762975113999,-557.81,0.00055342,120]
[393775654,1762975114042,-604.92,0.00055342,120]
[393775655,1762975114083,-693.64,0.00055342,120]
[393775656,1762975114124,-573.2,0.00055342,120]
[393775657,1762975114165,-500.0,0.00055342,120]
[393775658,1762975114206,-500.0,0.00055342,120]
[393775659,1762975114248,-500.0,0.00055342,120]
[393775660,1762975114292,-500.0,0.00055342,120]
[393775661,1762975114340,-500.0,0.00055342,120]
[393775662,1762975114384,-617.82212414,0.00055342,120]
[393775663,1762975114426,-595.77,0.00055342,120]
[393775664,1762975114467,-1143.27,0.00055342,120]
[393775665,1762975114507,-500.0,0.00055342,120]
[393775666,1762975114547,-500.0,0.00055342,120]
[393775667,1762975114586,-500.0,0.00055342,120]
[393775668,1762975114627,-506.34,0.00055342,120]
[393775669,1762975114671,-500.0,0.00055342,120]
[393775670,1762975114714,-537.88,0.00055342,120]
[393775671,1762975114757,-500.0,0.00055342,120]
[393775672,1762975114799,-1149.36,0.00055342,120]
[393775673,1762975114844,-718.5,0.00055342,120]
[393775674,1762975114887,-3630.04,0.00055342,120]
[393775675,1762975114936,-500.0,0.00055342,120]
[393775676,1762975114984,-500.0,0.00055342,120]
[393775677,1762975115028,-500.0,0.00055342,120]
[393775678,1762975115085,-500.0,0.00055342,120]
[393775679,1762975115134,-1045.04,0.00055342,120]
[393775680,1762975115182,-500.0,0.00055342,120]
[393775681,1762975115229,-513.61,0.00055342,120]
[393775682,1762975115278,-500.0,0.00055342,120]
[393775683,1762975115323,-597.53,0.00055342,120]
[393775684,1762975115367,-1779.43,0.00055342,120]
[393775685,1762975115414,-500.0,0.00055342,120]
[393775686,1762975115457,-765.1,0.00055342,120]
[393775687,1762975115500,-500.0,0.00055342,120]
[393775688,1762975115541,-1309.98,0.00055342,120]
[393775689,1762975115583,-533.88,0.00055342,120]
[393775690,1762975115625,-500.0,0.00055342,120]
[393775691,1762975115668,-500.0,0.00055342,120]
[393775692,1762975115711,-630.65,0.00055342,120]
[393775693,1762975115753,-500.0,0.00055342,120]
[393775694,1762975115893,-500.0,0.00055342,120]
[393775695,1762975115944,-500.0,0.00055342,120]
[393775696,1762975115989,-500.0,0.00055342,60]
[393775697,1762975116037,-500.0,0.00055342,120]
[393775698,1762975116084,-362.34,0.00055342,30]
[393775699,1762975116125,-500.0,0.00055342,120]
[393775700,1762975116170,-632.55,0.00055342,120]
[393775701,1762975116214,-500.0,0.00055342,120]
[393775702,1762975116258,-150.0,0.00055364,120]
[393775703,1762975116303,-150.0,0.00055373,120]
[393775704,1762975116349,-150.0,0.00055373,120]
[393775705,1762975116392,-150.0,0.00055373,120]
[393775706,1762975116434,-150.0,0.00055395,120]
[393775707,1762975116477,-150.0,0.00055423,120]
[393775708,1762975116518,-150.0,0.00055431,120]
[393775709,1762975116557,-150.0,0.00055445,120]
[393775710,1762975116598,-150.0,0.00055445,120]
[393775711,1762975116637,-150.0,0.00055445,120]
[393775712,1762975116679,-150.0,0.00055445,120]
[393775713,1762975116719,-150.0,0.00055445,120]
[393775714,1762975116758,-150.0,0.00055445,120]
[393775715,1762975116799,-150.0,0.00055456,120]
[393775716,1762975116839,-150.0,0.00055462,120]
[393775717,1762975116880,-150.0,0.00055489,120]
[393775718,1762975116919,-150.0,0.00055513,120]
[393775719,1762975116962,-150.0,0.00055527,120]
[393775720,1762975117004,-150.0,0.00055538,120]
[393775721,1762975117047,-150.0,0.00055546,120]
[393775722,1762975117089,-150.0,0.00055554,120]
[393775723,1762975117130,-150.0,0.00055575,120]
[393775724,1762975117172,-150.0,0.00055595,120]
[393775725,1762975117215,-150.0,0.00055595,120]
[393775726,1762975117256,-150.0,0.00055602,120]
[393775727,1762975117299,-150.0,0.00055604,120]
[393775728,1762975117339,-150.0,0.00055608,120]
[393775729,1762975117381,-500.0,0.00055616,120]
[393775730,1762975117420,-500.0,0.00055616,120]
[393775731,1762975117461,-500.0,0.00055616,120]
[393775732,1762975117500,-516.42,0.00055616,120]
[393775733,1762975117539,-500.0,0.00055616,120]
[393775734,1762975117578,-500.0,0.00055616,120]
[393775735,1762975117617,-500.0,0.00055616,120]
[393775736,1762975117655,-449.91171785,0.00055616,120]
[393775737,1762975117695,-711.22,0.00055616,120]
[393775738,1762975117736,-500.0,0.00055616,120]
[393775739,1762975117778,-500.0,0.00055616,120]
[393775740,1762975117819,-500.0,0.00055616,120]
[393775741,1762975117858,-500.0,0.00055616,120]
[393775742,1762975117898,-561.35,0.00055616,120]
[393775743,1762975117941,-500.0,0.00055616,120]
[393775744,1762975117983,-561.9,0.00055616,120]
[393775745,1762975118024,-519.17,0.00055616,120]
[393775746,1762975118063,-557.81,0.00055616,120]
[393775747,1762975118207,-604.92,0.00055616,120]
[393775748,1762975118257,-693.64,0.00055616,120]
[393775749,1762975118304,-573.2,0.00055616,120]
[393775750,1762975118353,-500.0,0.00055616,120]
[393775751,1762975118402,-500.0,0.00055616,120]
[393775752,1762975118448,-500.0,0.00055616,120]
[393775753,1762975118494,-500.0,0.00055616,120]
[393775754,1762975118541,-500.0,0.00055616,120]
[393775755,1762975118588,-595.77,0.00055616,120]
[393775756,1762975118630,-1143.27,0.00055616,120]
[393775757,1762975118673,-500.0,0.00055616,120]
[393775758,1762975118714,-500.0,0.00055616,120]
[393775759,1762975118756,-500.0,0.00055616,120]
[393775760,1762975118801,-506.34,0.00055616,120]
[393775761,1762975118843,-500.0,0.00055616,120]
[393775762,1762975118889,-537.88,0.00055616,120]
[393775763,1762975118929,-379.29337459,0.00055616,120]
[393775764,1762975118979,-1149.36,0.00055616,120]
[393775765,1762975119023,-718.5,0.00055616,120]
[393775766,1762975119065,-3630.04,0.00055616,120]
[393775767,1762975119109,-500.0,0.00055616,120]
[393775768,1762975119152,-500.0,0.00055616,120]
[393775769,1762975119198,-500.0,0.00055616,120]
[393775770,1762975119246,-556.38563291,0.00055616,120]
[393775771,1762975119296,-1045.04,0.00055616,120]
[393775772,1762975119345,-500.0,0.00055616,120]
[393775773,1762975119390,-513.61,0.00055616,120]
[393775774,1762975119435,-500.0,0.00055616,120]
[393775775,1762975119479,-597.53,0.00055616,120]
[393775776,1762975119520,-1779.43,0.00055616,120]
[393775777,1762975119560,-571.50713597,0.00055616,120]
[393775778,1762975119600,-765.1,0.00055616,120]
[393775779,1762975119641,-500.0,0.00055616,120]
[393775780,1762975119682,-1309.98,0.00055616,120]
[393775781,1762975119721,-533.88,0.00055616,120]
[393775782,1762975119762,-341.37605668,0.00055616,120]
[393775783,1762975119799,-500.0,0.00055616,120]
[393775784,1762975119835,-630.65,0.00055616,120]
[393775785,1762975119873,-500.0,0.00055616,120]
[393775786,1762975119916,-500.0,0.00055616,120]
[393775787,1762975119960,-500.0,0.00055616,120]
[393775788,1762975120004,-500.0,0.00055616,60]
[393775789,1762975120049,-500.0,0.00055616,120]
[393775790,1762975120090,-500.0,0.00055616,120]
[393775791,1762975120132,-632.55,0.00055616,120]
[393775792,1762975120176,-150.0,0.00055621,120]
[393775793,1762975120220,-150.0,0.00055662,120]
[393775794,1762975120264,-150.0,0.00055662,120]
[393775795,1762975120315,-150.0,0.00055662,120]
[393775796,1762975120360,-150.0,0.00055689,120]
[393775797,1762975120405,-150.0,0.00055692,120]
[393775798,1762975120561,-153.0,0.000557,120]
[393775799,1762975120611,-150.0,0.00055702,120]
[393775800,1762975120660,-150.0,0.00055703,120]
[393775801,1762975120704,-150.0,0.00055705,120]
[393775802,1762975120746,-150.0,0.0005572,120]
[393775803,1762975120790,-150.0,0.00055729,120]
[393775804,1762975120835,-150.0,0.00055741,120]
[393775805,1762975120876,-150.0,0.00055771,120]
[393775806,1762975120916,-150.0,0.00055771,120]
[393775807,1762975120963,-150.0,0.00055771,120]
[393775808,1762975121010,-150.0,0.00055778,120]
[393775809,1762975121054,-150.0,0.00055782,120]
[393775810,1762975121097,-150.0,0.00055786,120]
[393775811,1762975121138,-150.0,0.00055796,120]
[393775812,1762975121177,-150.0,0.00055836,120]
[393775813,1762975121221,-150.0,0.00055836,120]
[393775814,1762975121262,-150.0,0.00055836,120]
[393775815,1762975121306,-150.0,0.00055852,120]
[393775816,1762975121348,-150.0,0.00055862,120]
[393775817,1762975121392,-440.0,0.00055864,120]
[393775818,1762975121437,-440.0,0.00055864,120]
[393775819,1762975121480,-440.0,0.00055864,120]
[393775820,1762975121527,-440.0,0.00055864,120]
[393775821,1762975121573,-440.0,0.00055864,120]
[393775822,1762975121620,-440.0,0.00055864,120]
[393775823,1762975121664,-440.0,0.00055864,120]
[393775824,1762975121713,-440.0,0.00055864,120]
[393775825,1762975121761,-440.0,0.00055864,120]
[393775826,1762975121804,-440.0,0.00055864,120]
[393775827,1762975121846,-440.0,0.00055864,120]
[393775828,1762975121890,-440.0,0.00055864,120]
[393775829,1762975121932,-440.0,0.00055864,120]
[393775830,1762975121977,-440.0,0.00055864,120]
[393775831,1762975122030,-440.0,0.00055864,120]
[393775832,1762975122081,-440.0,0.00055864,120]
[393775833,1762975122130,-440.0,0.00055864,120]
[393775834,1762975122170,-440.0,0.00055864,120]
[393775835,1762975122211,-440.0,0.00055864,120]
[393775836,1762975122253,-440.0,0.00055864,120]
[393775837,1762975122292,-440.0,0.00055864,120]
[393775838,1762975122336,-440.0,0.00055864,120]
[393775839,1762975122376,-440.0,0.00055864,120]
[393775840,1762975122416,-459.72896244,0.00055864,120]
[393775841,1762975122454,-500.0,0.00055864,120]
[393775842,1762975122493,-500.0,0.00055864,120]
[393775843,1762975122530,-500.0,0.00055864,120]
[393775844,1762975122568,-500.0,0.00055864,120]
[393775845,1762975122604,-500.0,0.00055864,120]
[393775846,1762975122643,-500.0,0.00055864,120]
[393775847,1762975122776,-500.0,0.00055864,120]
[393775848,1762975122820,-500.0,0.00055864,120]
[393775849,1762975122861,-500.0,0.00055864,120]
[393775850,1762975122902,-500.0,0.00055864,120]
[393775851,1762975122944,-500.0,0.00055864,120]
[393775852,1762975122987,-500.0,0.00055864,120]
[393775853,1762975123028,-500.0,0.00055864,120]
[393775854,1762975123070,-541.16587267,0.00055864,120]
[393775855,1762975123112,-150.0,0.00055864,120]
[393775856,1762975123155,-500.0,0.00055864,120]
[393775857,1762975123195,-500.0,0.00055864,120]
[393775858,1762975123239,-500.0,0.00055864,120]
[393775859,1762975123280,-610.80073268,0.00055864,120]
[393775860,1762975123326,-150.0,0.00055864,120]
[393775861,1762975123376,-150.0,0.00055864,120]
[393775862,1762975123425,-153.99220448,0.00055864,120]
[393775863,1762975123469,-150.0,0.00055864,120]
[393775864,1762975123511,-150.0,0.00055864,120]
[393775865,1762975123552,-150.0,0.00055864,120]
[393775866,1762975123594,-150.0,0.00055864,120]
[393775867,1762975123637,-209.7940943,0.00055864,120]
[393775868,1762975123684,-150.0,0.00055864,120]
[393775869,1762975123731,-277.9739007,0.00055864,120]
[393775870,1762975123779,-158.74053739,0.00055864,120]
[393775871,1762975123836,-500.0,0.00055864,120]
[393775872,1762975123914,-500.0,0.00055864,120]
[393775873,1762975123981,-500.0,0.00055864,120]
[393775874,1762975124056,-500.0,0.00055864,120]
[393775875,1762975124127,-500.0,0.00055864,120]
[393775876,1762975124191,-500.0,0.00055864,120]
[393775877,1762975124254,-500.0,0.00055864,120]
[393775878,1762975124318,-500.0,0.00055864,120]
[393775879,1762975124382,-500.0,0.00055864,120]
[393775880,1762975124443,-500.0,0.00055864,120]
[393775881,1762975124504,-500.0,0.00055864,120]
[393775882,1762975124565,-328.76413151,0.00055864,120]
[393775883,1762975124626,-150.0,0.00055864,120]
[393775884,1762975124686,-150.0,0.00055864,120]
[393775885,1762975124752,-178.0,0.00055864,120]
[393775886,1762975124829,-500.0,0.00055864,120]
[393775887,1762975124892,-500.0,0.00055864,120]
[393775888,1762975124959,-500.0,0.00055864,120]
[393775889,1762975125023,-500.0,0.00055864,120]
[393775890,1762975125082,-500.0,0.00055864,120]
[393775891,1762975125144,-500.0,0.00055864,120]
[393775892,1762975125207,-500.0,0.00055864,120]
[393775893,1762975125276,-500.0,0.00055864,120]
[393775894,1762975125471,-453.04710534,0.00055864,120]
[393775895,1762975125561,-152.70228583,0.00055864,120]
[393775896,1762975125612,-500.0,0.00055864,120]
[393775897,1762975125662,-500.0,0.00055864,120]
[393775898,1762975125708,-500.0,0.00055864,120]
[393775899,1762975125751,-500.0,0.00055864,120]
[393775900,1762975125794,-500.0,0.00055864,120]
[393775901,1762975125837,-500.0,0.00055864,120]
[393775902,1762975125877,-500.0,0.00055864,120]
[393775903,1762975125917,-500.0,0.00055864,120]
[393775904,1762975125955,-500.0,0.00055864,120]
[393775905,1762975125995,-500.0,0.00055864,120]
[393775906,1762975126034,-500.0,0.00055864,120]
[393775907,1762975126072,-500.0,0.00055864,120]
[393775908,1762975126115,-500.0,0.00055864,120]
[393775909,1762975126158,-500.0,0.00055864,120]
[393775910,1762975126215,-297.0,0.00055864,120]
[393775911,1762975126267,-500.0,0.00055864,120]
[393775912,1762975126315,-500.0,0.00055864,120]
[393775913,1762975126361,-500.0,0.00055864,120]
[393775914,1762975126404,-500.0,0.00055864,120]
[393775915,1762975126446,-500.0,0.00055864,120]
[393775916,1762975126490,-500.0,0.00055864,120]
[393775917,1762975126537,-500.0,0.00055864,120]
[393775918,1762975126579,-500.0,0.00055864,120]
[393775919,1762975126619,-500.0,0.00055864,120]
[393775920,1762975126660,-500.0,0.00055864,120]
[393775921,1762975126701,-500.0,0.00055864,120]
[393775922,1762975126741,-500.0,0.00055864,120]
[393775923,1762975126782,-500.0,0.00055864,120]
[393775924,1762975126825,-500.0,0.00055864,120]
[393775925,1762975126878,-500.0,0.00055864,120]
[393775926,1762975126929,-500.0,0.00055864,120]
[393775927,1762975126978,-447.43047056,0.00055864,120]
[393775928,1762975127028,-150.0,0.00055864,120]
[393775929,1762975127082,-150.0,0.00055864,120]
[393775930,1762975127139,-150.0,0.00055864,120]
[393775931,1762975127186,-150.0,0.00055864,120]
[393775932,1762975127234,-190.1145127,0.00055864,120]
[393775933,1762975127285,-150.0,0.00055869,120]
[393775934,1762975127331,-150.0,0.00055872,120]
[393775935,1762975127376,-150.0,0.00055879,120]
[393775936,1762975127420,-500.0,0.0005589,120]
[393775937,1762975127462,-408.18,0.0005589,120]
[393775938,1762975127501,-575.27494272,0.0005589,120]
[393775939,1762975127542,-500.0,0.0005589,120]
[393775940,1762975127583,-500.0,0.0005589,120]
[393775941,1762975127624,-711.22,0.0005589,120]
[393775942,1762975127670,-253.96407365,0.0005589,120]
[393775943,1762975127711,-500.0,0.0005589,120]
[393775944,1762975127754,-500.0,0.0005589,120]
[393775945,1762975127915,-500.0,0.0005589,120]
[393775946,1762975127957,-561.35,0.0005589,120]
[393775947,1762975128000,-500.0,0.0005589,120]
[393775948,1762975128042,-561.9,0.0005589,120]
[393775949,1762975128081,-519.17,0.0005589,120]
[393775950,1762975128120,-557.81,0.0005589,120]
[393775951,1762975128160,-604.92,0.0005589,120]
[393775952,1762975128199,-693.64,0.0005589,120]
[393775953,1762975128240,-573.2,0.0005589,120]
[393775954,1762975128280,-331.00897495,0.0005589,120]
[393775955,1762975128320,-186.09609615,0.0005589,120]
[393775956,1762975128360,-500.0,0.0005589,120]
[393775957,1762975128402,-500.0,0.0005589,120]
[393775958,1762975128442,-500.0,0.0005589,120]
[393775959,1762975128482,-595.77,0.0005589,120]
[393775960,1762975128523,-1143.27,0.0005589,120]
[393775961,1762975128565,-500.0,0.0005589,120]
[393775962,1762975128619,-500.0,0.0005589,120]
[393775963,1762975128659,-500.0,0.0005589,120]
[393775964,1762975128700,-506.34,0.0005589,120]
[393775965,1762975128746,-500.0,0.0005589,120]
[393775966,1762975128786,-537.88,0.0005589,120]
[393775967,1762975128825,-1149.36,0.0005589,120]
[393775968,1762975128863,-718.5,0.0005589,120]
[393775969,1762975128901,-3630.04,0.0005589,120]
[393775970,1762975128941,-500.0,0.0005589,120]
[393775971,1762975128983,-178.83788252,0.0005589,120]
[393775972,1762975129026,-500.0,0.0005589,120]
[393775973,1762975129069,-1045.04,0.0005589,120]
[393775974,1762975129110,-500.0,0.0005589,120]
[393775975,1762975129150,-513.61,0.0005589,120]
[393775976,1762975129192,-500.0,0.0005589,120]
[393775977,1762975129232,-597.53,0.0005589,120]
[393775978,1762975129273,-1779.43,0.0005589,120]
[393775979,1762975129316,-765.1,0.0005589,120]
[393775980,1762975129357,-500.0,0.0005589,120]
[393775981,1762975129395,-1309.98,0.0005589,120]
[393775982,1762975129436,-533.88,0.0005589,120]
[393775983,1762975129476,-500.0,0.0005589,120]
[393775984,1762975129515,-630.65,0.0005589,120]
[393775985,1762975129555,-339.13022873,0.0005589,120]
[393775986,1762975129593,-500.0,0.0005589,120]
[393775987,1762975129633,-500.0,0.0005589,120]
[393775988,1762975129672,-500.0,0.0005589,60]
[393775989,1762975129717,-500.0,0.0005589,120]
[393775990,1762975129759,-500.0,0.0005589,120]
[393775991,1762975129802,-632.55,0.0005589,120]
[393775992,1762975129844,-150.0,0.00055893,120]
[393775993,1762975129885,-170784.17845531,0.000559,120]
[393775994,1762975130050,-150.0,0.00055933,120]
[393775995,1762975130092,-150.0,0.00055951,120]
[393775996,1762975130134,-150.0,0.00055951,120]
[393775997,1762975130172,-150.0,0.00055951,120]
[393775998,1762975130213,-150.0,0.00055961,120]
[393775999,1762975130255,-150.0,0.00055966,120]
[393776000,1762975130294,-150.0,0.00055987,120]
[393776001,1762975130340,-150.0,0.00055996,120]
[393776002,1762975130380,-150.0,0.00055996,120]
[393776003,1762975130422,-1000.0,0.00055999,120]
[393776004,1762975130462,-2983.77390326,0.00056,120]
[393776005,1762975130500,-200.0,0.00056,120]
[393776006,1762975130537,-359.59660224,0.00056,120]
[393776007,1762975130576,-79425.1980028,0.00056,120]
[393776008,1762975130613,-2617.60419653,0.00056,120]
[393776009,1762975130649,-792.473075,0.00056,120]
[393776010,1762975130688,-19396.20454756,0.00056,120]
[393776011,1762975130730,-1186.55565218,0.00056,120]
[393776012,1762975130769,-919.72083617,0.00056,120]
[393776013,1762975130806,-150.0,0.00056009,120]
[393776014,1762975130843,-150.0,0.00056015,120]
[393776015,1762975130879,-150.0,0.00056034,120]
[393776016,1762975130916,-150.0,0.00056051,120]
[393776017,1762975130954,-150.0,0.00056067,120]
[393776018,1762975130991,-150.0,0.00056096,120]
[393776019,1762975131028,-150.0,0.00056096,120]
[393776020,1762975131065,-150.0,0.00056096,120]
[393776021,1762975131103,-150.0,0.00056096,120]
[393776022,1762975131140,-150.0,0.00056096,120]
[393776023,1762975131181,-150.0,0.00056096,120]
[393776024,1762975131221,-503.16454672,0.00056108,30]
[393776025,1762975131262,-150.0,0.00056117,120]
[393776026,1762975131306,-150.0,0.00056125,120]
[393776027,1762975131351,-150.0,0.00056129,120]
[393776028,1762975131395,-150.0,0.00056141,120]